Cogmind - Beta 13 @@@ ROGUE MODE // 2024.06.12 @ 12:58:18 Player: Some Pennies Result: Destroyed by S-10 Pest with Light Assault Rifle Performance ------------- Evolutions (0) 0 Regions Visited (2) 400 Robots Destroyed (42) 210 Value Destroyed (981) 981 Prototype IDs (2) 40 Alien Tech Used (0) 0 Bonus (0) 0 TOTAL SCORE: 1631 Bonus ------- None Cogmind --------- Core Integrity 0/250 Matter 245/300 Energy 247/250 System Corruption 0% Temperature Cool (0) Movement Treading (340) Ox2 Location -10/Subcaves Parts ------- > --- POWER (1) -------- Ion Engine > --- PROPULSION (2) --- Light Treads Spiked Treads > --- UTILITY (2) ------ Huge Storage Unit Light Armor Plating > --- WEAPON (2) ------- Battle Cannon Grenade Launcher > --- INVENTORY (25) --- Subdweller Power Source Light Angular Momentum Engine Light Treads Light Treads Light Treads Light Treads Light Treads Light Treads Light Treads Spiked Treads Myomer Leg Seismic Detector Scrap Shield Hacking Suite Subdweller Beam Cannon Battle Rifle Subdweller Machine Gun Subdweller Machine Gun Subdweller Machine Gun Subdweller Machine Gun Subdweller Shrapnel Launcher Dirty Datajack (20) Makeshift Sword Peak State ------------ > --- POWER ------------ Ion Engine > --- PROPULSION ------- Light Treads Spiked Treads > --- UTILITY ---------- Huge Storage Unit Seismic Detector > --- WEAPON ----------- Beam Cannon Bore Cannon > --- INVENTORY -------- Subdweller Power Source Light Angular Momentum Engine Light Treads Light Treads Light Treads Light Treads Light Treads Light Treads Light Treads Spiked Treads Myomer Leg Light Armor Plating Scrap Shield Hacking Suite Subdweller Laser Assault Rifle Battle Rifle Subdweller Machine Gun Subdweller Machine Gun Battle Cannon Grenade Launcher Subdweller Shrapnel Launcher Dirty Datajack Hammer [Rating: 17] Favorites ----------- Power Ion Engine Engine Ion Engine Propulsion Light Treads Treads Light Treads Wheel Compact Wheel Utility Seismic Detector Device Seismic Detector Storage Huge Storage Unit Protection Light Armor Plating Weapon Beam Cannon Energy Gun EM Pulse Gun Energy Cannon Beam Cannon Ballistic Gun Light Assault Rifle Ballistic Cannon Bore Cannon Launcher Grenade Launcher Impact Weapon Hammer Build | -11 -10 -10 ------- Run | Yrd Mat Sub Slots Evolved . | . . . Power . | . . . Propulsion . | . . . Utility . | . . . Weapon . | . . . Parts Attached 43 | 11 20 12 Power 4 | 1 2 1 Engine 4 | 1 2 1 Core . | . . . Reactor . | . . . Propulsion 12 | 4 6 2 Treads 10 | 3 5 2 Leg . | . . . Wheel 2 | 1 1 . Hover . | . . . Flight . | . . . Utility 7 | 2 2 3 Device 2 | 1 . 1 Storage 3 | 1 2 . Processor . | . . . Hackware . | . . . Protection 2 | . . 2 Artifact . | . . . Weapon 20 | 4 10 6 Energy Gun 4 | 3 . 1 Energy Cannon 1 | . 1 . Ballistic Gun 9 | 1 7 1 Ballistic Cannon 2 | . . 2 Launcher 3 | . 2 1 Special Weapon . | . . . Impact Weapon 1 | . . 1 Slashing Weapon . | . . . Piercing Weapon . | . . . Special Melee Weapon . | . . . Unidentified Prototypes . | . . . Parts Lost 7 | . 5 2 Power 2 | . 1 1 Propulsion 2 | . 2 . Utility . | . . . Weapon 3 | . 2 1 Highest Loss Streak 2 | . 2 1 To Critical Strikes 1 | . 1 . Average Slot Usage (%) 95 | . 88 99 Engine 13 | . 13 13 Treads 25 | . 21 28 Device 13 | . 14 12 Storage 14 | . 14 14 Energy Gun 1 | . 3 . Energy Cannon 8 | . 1 13 Ballistic Gun 9 | . 18 4 Ballistic Cannon 4 | . . 7 Naked Turns . | . . . Heaviest Build 98 | 15 91 98 Greatest Support 40 | 40 40 40 Greatest Overweight (x) 28 | . 28 2 Average Overweight (x) 1 | . 1 2 Largest Inventory Capacity 25 | 8 25 25 Average Capacity 21 | 6 17 25 Most Carried 25 | 5 18 25 Average Carried 18 | 3 11 24 Final Capacity 25 | 8 25 25 Final Carried 24 | 4 16 24 Class Distribution -------------------- 97% | Mutant Dominant Class ---------------- Mutant | -10/Materials Mutant | -10/Subcaves Resources | -11 -10 -10 ----------- Run | Yrd Mat Sub Matter Collected 1093 | 254 344 495 Remotely . | . . . Salvage Created 1185 | 46 685 454 Parts 97 | 7 59 31 Haulers Intercepted 1 | . 1 . Recyclers Shooed 1 | . 1 . Parts Field Recycled . | . . . Retrieved Matter . | . . . Parts Self-Destructed 17 | . . 17 Prevented . | . . . Kills | -11 -10 -10 ------- Run | Yrd Mat Sub Combat Hostiles Destroyed 29 | . 16 13 Guns 12 | . 10 2 Cannons 9 | . . 9 AOE 7 | . 6 1 Classes Destroyed 10 | 1 8 1 Worker 3 | . 3 . Builder 2 | . 2 . Tunneler 2 | 2 . . Hauler 1 | . 1 . Recycler 2 | . 2 . Operator 2 | . 2 . Watcher 1 | . 1 . Swarmer 9 | . 8 1 Grunt 8 | . 8 . Subdweller 12 | . . 12 Best Kill Streak 7 | 2 7 4 Combat Bots Only 5 | . 5 4 Max Kills in Single Turn 4 | 1 4 1 Gunslinging . | . . . Exploded 3 | . 3 1 Melee . | . . . Uniques/NPCs Destroyed . | . . . Combat | -11 -10 -10 -------- Run | Yrd Mat Sub Hostile Shots Fired 140 | . 76 64 Missed 46 | . 21 25 Damage Taken 1544 | . 781 763 Core 254 | . 101 153 Absorbed by Shields . | . . . Regen/Repaired (Parts) 132 | . 132 . Core Remaining (%) 100 | 100 . . Volleys Fired 140 | 16 59 65 Largest 2 | 2 2 2 Hottest 120 | 60 80 120 Shots Fired 265 | 19 117 129 Gun 147 | 19 113 15 Cannon 115 | . 2 113 Launcher 3 | . 2 1 Special . | . . . Kinetic 158 | 16 88 54 Thermal 76 | . 2 74 Explosive 3 | . 2 1 Electromagnetic 28 | 3 25 . Robot Hit Streak 13 | 10 9 13 Robot Miss Streak 5 | 3 5 2 Penetration Max . | . . . Secondary Targets 3 | . 3 . Max Gunslinging Chain 1 | . 1 . Shots Hit Robots 139 | 13 63 63 Core Hits 61 | 2 41 18 Critical Kills 5 | . . 5 Critical Parts Destroyed 2 | . . 2 Critical Strikes 14 | . . 14 Meltdown 1 | . . 1 Destroy 13 | . . 13 Melee Attacks 2 | . . 2 Impact 2 | . . 2 Slashing . | . . . Piercing . | . . . Sneak Attacks . | . . . Combat Hostiles . | . . . Follow-up Attacks . | . . . Damage Inflicted 2475 | 166 1121 1188 Guns 1007 | 166 679 162 Cannons 951 | . . 951 Explosions 517 | . 442 75 Melee . | . . . Ramming . | . . . Kinetic 1023 | 126 502 395 Thermal 855 | . 137 718 Explosive 380 | . 305 75 Electromagnetic 217 | 40 177 . Impact . | . . . Slashing . | . . . Piercing . | . . . Highest Corruption . | . . . Average Corruption . | . . . Corruption Purged . | . . . Corruption Blocked . | . . . Overload Shots . | . . . Overflow Damage 122 | . 122 . Projectiles . | . . . Explosions 122 | . 122 . Melee . | . . . Knockbacks 5 | . . 5 Impact . | . . . Kinetic 5 | . . 5 Secondary . | . . . Self-Inflicted Damage 256 | . 256 . Shots 4 | . 4 . Rammed . | . . . Targets Rammed . | . . . Kicked . | . . . Crushed . | . . . Highest Temperature 102 | . 102 18 Average Temperature 22 | . 34 6 Received Heat Transfer 321 | . 162 159 Siege Activations . | . . . Robots Corrupted . | . . . Combat Hostiles . | . . . Parts Fried 1 | . 1 . Impact Corruptions . | . . . Robots Melted 1 | . . 1 Combat Hostiles 1 | . . 1 Parts Melted 2 | . . 2 Heat Transferred 1484 | . 100 1384 Parts Sabotaged . | . . . Parts Stolen . | . . . Parts Stripped . | . . . Power Chain Reactions 1 | . 1 . Alert | -11 -10 -10 ------- Run | Yrd Mat Sub Peak Influence 282 | 10 282 . Initial 6 | . 6 . Average 131 | 5 141 . Maximum Alert Level 1 | . 1 . Low Security (%) 78 | 100 76 . Level 1 21 | . 23 . Level 2 . | . . . Level 3 . | . . . Level 4 . | . . . Level 5 . | . . . High Security . | . . . Max Security . | . . . Squads Dispatched 4 | . 4 . Investigation 3 | . 3 . Extermination . | . . . Reinforcement 1 | . 1 . Assault . | . . . Garrison . | . . . Intercept . | . . . Searches Triggered . | . . . Construction Impeded . | . . . Haulers Reinforced . | . . . Active Scanning Responses . | . . . Cargo Convoy Interrupts . | . . . Stealth | -11 -10 -10 --------- Run | Yrd Mat Sub Distress Signals 1 | . 1 . Communications Jammed . | . . . Distress Signals . | . . . Times Spotted 45 | . 26 19 Peak Tracking Total 6 | . 4 6 Tactical Retreats 1 | . . 1 Traps | -11 -10 -10 ------- Run | Yrd Mat Sub Traps Triggered 4 | . 4 . Indirectly . | . . . Trap Hack Attempts . | . . . Triggered . | . . . Disarmed . | . . . Reprogrammed . | . . . Reused . | . . . Traps Extracted . | . . . Installed 1 | . . 1 Triggered . | . . . Machines | -11 -10 -10 ---------- Run | Yrd Mat Sub Machines Disabled 5 | . 5 . Max in Single Turn 3 | . 3 . Machines Repaired . | . . . Machines Dismantled . | . . . Machines Sabotaged . | . . . Overloaded Fab Kills . | . . . Hacking | -11 -10 -10 --------- Run | Yrd Mat Sub Machines Accessed 7 | . 6 1 Terminals 5 | . 5 . Fabricators . | . . . Repair Stations 1 | . 1 . Recycling Units . | . . . Scanalyzers . | . . . Garrison Access . | . . . Total Hacks 24 | . 21 3 Successful 11 | . 8 3 Failed 13 | . 13 . Catastrophic 3 | . 3 . Database Lockouts . | . . . Manual 12 | . 12 . Terminals 19 | . 19 . Fabricators . | . . . Repair Stations 2 | . 2 . Recycling Units . | . . . Scanalyzers . | . . . Garrison Access . | . . . Terminal Hacks 9 | . 6 3 Record 3 | . . 3 Robot Analysis 4 | . 4 . Prototype ID Bank 1 | . 1 . Locate Traps 1 | . 1 . Fabricator Hacks . | . . . Repair Station Hacks 2 | . 2 . Scan Component 1 | . 1 . Repair 1 | . 1 . Recycling Unit Hacks . | . . . Scanalyzer . | . . . Garrison Access Hacks . | . . . Unauthorized Hacks . | . . . Terminals . | . . . Fabricators . | . . . Repair Stations . | . . . Recycling Units . | . . . Scanalyzers . | . . . Garrison Access . | . . . Data Cores Recovered . | . . . Used . | . . . Hacking Detections 6 | . 6 . Full Trace Events 4 | . 4 . Feedback Events . | . . . Feedback Blocked . | . . . Robot Schematics Acquired . | . . . Robots Built . | . . . Authchips . | . . . Time . | . . . Total Robot Build Rating . | . . . Part Schematics Acquired . | . . . Parts Built . | . . . Authchips . | . . . Time . | . . . Total Part Build Rating . | . . . Parts Repaired 1 | . 1 . Time 26 | . 26 . Parts Recycled . | . . . Recycled Matter . | . . . Retrieved Matter . | . . . Retrieved Components . | . . . Parts Scanalyzed . | . . . Part Schematics Acquired . | . . . Parts Damaged . | . . . Bothacking | -11 -10 -10 ------------ Run | Yrd Mat Sub Used RIF Installer . | . . . Robots Hacked . | . . . Non-combat . | . . . Combat . | . . . Robot Hacks Applied . | . . . Relay Couplers Released . | . . . Fabnet Peak Effective % . | . . . Robots Rewired . | . . . Allies Hacked . | . . . Hacks Repelled . | . . . Allies | -11 -10 -10 -------- Run | Yrd Mat Sub Total Allies . | . . . Largest Group . | . . . Highest-Rated Group . | . . . Highest-Rated Ally . | . . . Total Orders . | . . . Ally Attacks . | . . . Total Damage . | . . . Kills . | . . . Allies Corrupted . | . . . Allies Melted . | . . . Intel | -11 -10 -10 ------- Run | Yrd Mat Sub Robot Analysis Total 4 | . 4 . Derelict Logs Recovered 1 | . . 1 Drone Launches . | . . . Drone Recoveries . | . . . Exploration | -11 -10 -10 ------------- Run | Yrd Mat Sub Turns Passed 4702 | 128 1732 2842 Spaces Moved 1492 | 47 658 787 Core 30 | 12 18 . Treads 1436 | 35 614 787 Legs . | . . . Wheels 26 | . 26 . Hover . | . . . Flight . | . . . Fastest Speed 50 | 50 100 320 Average Speed 277 | 131 225 330 Slowest Speed 1450 | 160 1450 340 Overloaded Moves . | . . . Propulsion Burnouts . | . . . Robots Hopped . | . . . Cave-ins Triggered . | . . . Exploration Rate (%) 49 | 5 85 58 Regions Visited 2 Branch Regions 1 Pre-discovered Areas 1 | . . 1 Known Exits Taken . | . . . Unknown Exits Taken 2 | 1 1 . Scrap Searched 7 | . . 7 Spaces Dug 8 | . 8 . Terrain Destroyed 72 | . 57 15 Melee . | . . . Projectile 12 | . . 12 AOE 60 | . 57 3 Terrain Rammed . | . . . Walls Destroyed . | . . . Machines Disabled . | . . . Actions | -11 -10 -10 --------- Run | Yrd Mat Sub Total 1799 | 91 808 900 Wait 44 | 9 32 3 Move 1490 | 46 657 787 Hop . | . . . Pick Up 59 | 9 31 19 Fast Attach 4 | 2 2 . Attach 20 | 5 11 4 Detach . | . . . Swap 19 | 4 7 8 Drop 20 | . 9 11 Fire 140 | 16 59 65 Melee 2 | . . 2 Ram . | . . . Kick . | . . . Crush . | . . . Escape Stasis . | . . . Rewire . | . . . Trap 1 | . . 1 Miscellaneous . | . . . Route ------- -11/Scrapyard -10/Materials (discovered 5 exits: [*Mat x3] / [*Min] / *Sub) -10/Subcaves (discovered 2 exits: [*Mat] / Rec) History --------- Turn | Location | Event 4 | -11/Scrapyard | Discovered new exit (range 15) 129 | -11/Scrapyard | Entered Materials 300 | -10/Materials | Build established: Mutant 433 | -10/Materials | Discovered new exit (range 4) 595 | -10/Materials | Discovered new exit (range 12) 751 | -10/Materials | Discovered new exit (range 8) 765 | -10/Materials | Discovered new exit (range 15) 1678 | -10/Materials | Repaired Lgt. Treads 1832 | -10/Materials | Discovered new exit (range 9) 1861 | -10/Materials | Entered Subcaves 2038 | -10/Subcaves | Ambushed by swarm of Subdwellers 2049 | -10/Subcaves | Core integrity fell below 50% 2069 | -10/Subcaves | Core integrity fell below 20% 2109 | -10/Subcaves | Lost 3 allies 2415 | -10/Subcaves | Shifting Twisted Machinery released Sub. Monowheel 2543 | -10/Subcaves | Shifting Twisted Machinery released Sub. Power Source 2547 | -10/Subcaves | Shifting Twisted Machinery released Barrage Gun 2784 | -10/Subcaves | Learned location of Zion (-7) 2784 | -10/Subcaves | Met a Zionite searching for "candidates" 2914 | -10/Subcaves | Identified exit to Recycling 3506 | -10/Subcaves | Discovered new exit (range 11) 3611 | -10/Subcaves | Visited Clippyterm 3621 | -10/Subcaves | Learned Research security intel 3621 | -10/Subcaves | Learned Factory stockpile data 4438 | -10/Subcaves | A swath of the cavern ceiling suddenly collapsed 4703 | -10/Subcaves | Destroyed by S-10 Pest with Light Assault Rifle Last Messages --------------- 04505_ Earth collapses. 04508_ HV Slug penetrates Earth. 04528_ HV Slug penetrates Wall. 04528_ HV Slug penetrates Earth. 04545_ 2B-9ST(R) suffers critical hit (Destroy). 04548_ HV Slug penetrates Wall. 04553_ Bore Cannon destroyed. 04556_ 2B-9ST(R) destroyed. 04559_ 17-0ZO(R) knocked back. 04562_ 17-0ZO(R) destroyed. 04579_ Dropped Beam Cannon. 04580_ Acquired Sub. Machine Gun. 04584_ Dropped Sub. Laser. 04588_ Acquired Sub. Machine Gun. 04589_ Acquired 35 matter. 04596_ Acquired 3 matter. 04619_ Acquired 9 matter. 04650_ Acquired 15 matter. 04674_ Acquired 18 matter. 04702_ S-10 Pest destroyed. Map ----- +----------------------------------------------------+ | #????????????????????????????????????????????????? | | ?????????????????????????????????????????????????? | | ?????????????????????????????????????????????????? | | ?????????????????????????????????????????????????? | | ?????????????????????????????????????????????????? | | ?????????????????????????????????????????????????? | | ?????????????????????????????????????????????????? | | ?????????????????????????????????????????????????? | | ?????????????????????????????????????????????????? | | ?????????????????????????????????????????????????? | | ?????????????????????????????????????????????????? | | ?????????????????????????????????????????????????? | | ?????????????????????????????????????????????????? | | ??????????????????????????????? ???????????????? | | ??????????????????????????????? ???????????? | | ??????????????????????????????? ##?????????? | | ??????????????????????????????? #?????????? | | ?????????????????????????????? ??????????? | | ?????????????????????????????? ???????????? | | ?????????????????????????????? #????????????? | | ?????????????????????????????? #????????????? | | ?????????????????????????????? #????????????? | | ????????????????????#####????? ##???????????? | | ???????????????????## ###?? #???????????? | | ????????????# ## ### #???????????? | | ?????????? *s= %* % @ % #???????????? | | ?????>???? s #??????????? | | ??????????% s ##### # # #??????????? | | ??????????? # ??????#### ##### #??????????? | | ??????????? ; ????????????# #????? #??????????? | | ????????????#???????????????# ##????????????????? | | ????????????????????????????# #????????????????? | | ????????????????????????????# ####?????????????? | | ???????????????????????????## ##????????????? | | ??????????????????????????## #????????????? | | ??????????????????????????# #????????????? | | ??????????????????????????##### #????????????? | | ??????????????????????????# ### ##???????????? | | ????????????????##????##### ##??????????? | | ????????????????# ?### % #??????????? | | ????????????????# ## ### ##??????????? | | ????????????????# ##??######????????? | | ????####????????# ##### ##???????? | | #### #???????? ## % #???????? | | #?????????# ?## ## ##???????? | | #?????????## #?# ### ##????????? | | < #??????????? ?# ! #??# ##?????????? | | # #???????????# #?#&%&&#### ##??????????? | | #??????????## ### ! & ## ######???????????? | | ##??????????# ][ ##???????????????? | +----------------------------------------------------+ Best States ------------- Heat Dissipation 25 Energy Generation 10 Energy Capacity 250 Matter Stores 300 Matter Capacity 300 Sight Range 16 Terrain Scan Density 10 Armor Coverage 150 Evasion (%) 50 Recoil Reduction 2 Item Schematics ----------------- None Robot Schematics ------------------ None Fabricated ------------ Nothing Alien Tech Used ----------------- None Achievements -------------- None Challenges ------------ None Game ------ Seed NetworkAdvancedDissipator Manual? 0 Play Time 00:21:00 Cumulative 152.0 hours Start 2024.06.11 @ 19:21:37 End 2024.06.12 @ 12:58:18 Sessions 3 Manual Loads 0 Difficulty Rogue Special Mode None Game No. 124 Rogue 119 Adventurer 5 Explorer 0 Win Type - Total 3 Types 2/0/1/0/0/0/0/0/0 Lore% 63 Gallery% 75 Achievement% 53 Wizard Run 0 Options --------- Layout 2 ASCII 0 Keyboard 0 Movement Mouse Keybinds 0 Fullscreen 2 Font 24/Smallcaps Map View 50x44 Zoom Use 0% Tactical HUD 1 Map Filters NONE Filters NONE Steam 1 RUN: e674d624-5876-4e7f-87bc-1f1fce6fc82d